[Event "Late-Titled-Tuesday-Blitz-January-16-2024"]
[Site "Chess.com"]
[Date "2024.01.16"]
[Round "1"]
[White "EddieUrquhart"]
[Black "Korchmar_Vasiliy"]
[Result "1-0"]
[WhiteElo "2425"]
[BlackElo "2720"]
[TimeControl "180+1"]
[EndTime "14:06:44 PST"]
[Termination "EddieUrquhart won by resignation"]

1. e4 {[%clk 0:02:59.3]} 1... c5 {[%clk 0:02:59.8]} 2. Nc3 {[%clk 0:02:58.8]}
2... d6 {[%clk 0:03:00]} 3. f4 {[%clk 0:02:58]} 3... Nc6 {[%clk 0:03:00]} 4. Nf3
{[%clk 0:02:58.9]} 4... e6 {[%clk 0:02:56.5]} 5. Bb5 {[%clk 0:02:58.7]} 5... Bd7
{[%clk 0:02:54.9]} 6. d3 {[%clk 0:02:58.3]} 6... Nf6 {[%clk 0:02:53.3]} 7. O-O
{[%clk 0:02:57.8]} 7... Be7 {[%clk 0:02:53.8]} 8. Bxc6 {[%clk 0:02:57]} 8...
Bxc6 {[%clk 0:02:54]} 9. Qe1 {[%clk 0:02:57.9]} 9... O-O {[%clk 0:02:54]} 10.
Qg3 {[%clk 0:02:57.2]} 10... b5 {[%clk 0:02:51.3]} 11. f5 {[%clk 0:02:56.3]}
11... Kh8 {[%clk 0:02:47.9]} 12. fxe6 {[%clk 0:02:53.8]} 12... fxe6 {[%clk
0:02:48.2]} 13. Qh3 {[%clk 0:02:52.6]} 13... Qc8 {[%clk 0:02:03.8]} 14. Ng5
{[%clk 0:02:51]} 14... e5 {[%clk 0:02:03.5]} 15. Rxf6 {[%clk 0:02:24]} 15...
Qxh3 {[%clk 0:01:36.7]} 16. Rxf8+ {[%clk 0:02:23.3]} 16... Rxf8 {[%clk
0:01:37.4]} 17. Nxh3 {[%clk 0:02:17.3]} 17... c4 {[%clk 0:01:37.5]} 18. Bg5
{[%clk 0:02:10.9]} 18... Bxg5 {[%clk 0:01:35.5]} 19. Nxg5 {[%clk 0:02:11.8]}
19... b4 {[%clk 0:01:34.2]} 20. Nd5 {[%clk 0:02:10.6]} 20... Bxd5 {[%clk
0:01:34.7]} 21. exd5 {[%clk 0:02:10.7]} 21... cxd3 {[%clk 0:01:34.5]} 22. cxd3
{[%clk 0:02:10.3]} 22... Rc8 {[%clk 0:01:35.4]} 23. Nf7+ {[%clk 0:01:59.3]}
23... Kg8 {[%clk 0:01:35.1]} 24. Nxd6 {[%clk 0:02:00.2]} 24... Rd8 {[%clk
0:01:34.7]} 25. Nc4 {[%clk 0:01:57.7]} 25... Rxd5 {[%clk 0:01:34.8]} 26. Rd1
{[%clk 0:01:56.1]} 26... Kf7 {[%clk 0:01:27.9]} 27. Kf2 {[%clk 0:01:55.9]} 27...
Ke6 {[%clk 0:01:28.5]} 28. Ke3 {[%clk 0:01:55.6]} 28... Rd4 {[%clk 0:01:22]} 29.
Rf1 {[%clk 0:01:51.6]} 29... h5 {[%clk 0:01:18.6]} 30. Rf8 {[%clk 0:01:43.8]}
30... Rg4 {[%clk 0:01:18.4]} 31. g3 {[%clk 0:01:43.6]} 31... h4 {[%clk
0:01:18.7]} 32. Re8+ {[%clk 0:01:35.6]} 32... Kf6 {[%clk 0:01:19]} 33. Nxe5
{[%clk 0:01:30.8]} 33... Rg5 {[%clk 0:01:19.4]} 34. Nf3 {[%clk 0:01:23.4]} 34...
Ra5 {[%clk 0:01:18.4]} 35. Rb8 {[%clk 0:01:16]} 35... hxg3 {[%clk 0:01:16.3]}
36. hxg3 {[%clk 0:01:15.6]} 36... Ra4 {[%clk 0:01:14.2]} 37. b3 {[%clk
0:01:13.3]} 37... Rxa2 {[%clk 0:01:13]} 38. Rxb4 {[%clk 0:01:13.3]} 38... a5
{[%clk 0:01:12.6]} 39. Rb6+ {[%clk 0:01:11.4]} 39... Ke7 {[%clk 0:01:11.3]} 40.
g4 {[%clk 0:01:08.9]} 40... a4 {[%clk 0:01:09.3]} 41. bxa4 {[%clk 0:01:07.4]}
41... Rxa4 {[%clk 0:01:10.2]} 42. g5 {[%clk 0:01:06.4]} 42... Rg4 {[%clk
0:01:07]} 43. d4 {[%clk 0:01:04.8]} 43... Rg2 {[%clk 0:01:04.2]} 44. Ke4 {[%clk
0:01:03.9]} 44... Re2+ {[%clk 0:01:03.5]} 45. Kd5 {[%clk 0:01:04.1]} 45... Rf2
{[%clk 0:01:03.2]} 46. Ne5 {[%clk 0:01:03.5]} 46... Rf5 {[%clk 0:00:58.1]} 47.
Rb7+ {[%clk 0:01:01.9]} 47... Kf8 {[%clk 0:00:57.4]} 48. g6 {[%clk 0:00:59.5]}
48... Rg5 {[%clk 0:00:36.9]} 49. Ke6 {[%clk 0:00:52.7]} 49... Rxe5+ {[%clk
0:00:27.6]} 50. dxe5 {[%clk 0:00:51.2]} 1-0

[Event "Late-Titled-Tuesday-Blitz-January-16-2024"]
[Site "Chess.com"]
[Date "2024.01.16"]
[Round "1"]
[White "Megagigahiper3345"]
[Black "kaanadayhamle"]
[Result "1-0"]
[WhiteElo "2710"]
[BlackElo "2395"]
[TimeControl "180+1"]
[EndTime "14:06:44 PST"]
[Termination "Megagigahiper3345 won on time"]

1. e4 {[%clk 0:02:49.3]} 1... e5 {[%clk 0:02:59.7]} 2. Nf3 {[%clk 0:02:48.2]}
2... Nc6 {[%clk 0:03:00]} 3. Bc4 {[%clk 0:02:47.5]} 3... Bc5 {[%clk 0:02:58.4]}
4. Nc3 {[%clk 0:02:27.6]} 4... d6 {[%clk 0:02:53.4]} 5. Na4 {[%clk 0:02:26.5]}
5... Bb6 {[%clk 0:02:51.1]} 6. Nxb6 {[%clk 0:02:23.2]} 6... axb6 {[%clk
0:02:52]} 7. c3 {[%clk 0:02:22.6]} 7... Nf6 {[%clk 0:02:51.7]} 8. d3 {[%clk
0:02:22.2]} 8... h6 {[%clk 0:02:51.6]} 9. O-O {[%clk 0:02:20.2]} 9... O-O {[%clk
0:02:51.7]} 10. h3 {[%clk 0:02:17.6]} 10... Bd7 {[%clk 0:02:51.6]} 11. Bb3
{[%clk 0:02:12]} 11... Qe7 {[%clk 0:02:49]} 12. Qe2 {[%clk 0:02:11.6]} 12... Be6
{[%clk 0:02:48.7]} 13. c4 {[%clk 0:01:56.7]} 13... b5 {[%clk 0:02:29.4]} 14. a3
{[%clk 0:01:43]} 14... bxc4 {[%clk 0:02:20.2]} 15. Bxc4 {[%clk 0:01:41.9]} 15...
Bxc4 {[%clk 0:02:19.7]} 16. dxc4 {[%clk 0:01:42.5]} 16... Nd7 {[%clk 0:02:16]}
17. Be3 {[%clk 0:01:40.9]} 17... f5 {[%clk 0:02:03.2]} 18. exf5 {[%clk
0:01:37.7]} 18... Rxf5 {[%clk 0:02:04.1]} 19. Nd2 {[%clk 0:01:37.9]} 19... Raf8
{[%clk 0:01:58.2]} 20. b4 {[%clk 0:01:37.4]} 20... Nd8 {[%clk 0:01:40.5]} 21. a4
{[%clk 0:01:36.2]} 21... Ne6 {[%clk 0:01:40.5]} 22. a5 {[%clk 0:01:36.6]} 22...
Nf4 {[%clk 0:01:38.9]} 23. Bxf4 {[%clk 0:01:30.9]} 23... Rxf4 {[%clk 0:01:39.8]}
24. b5 {[%clk 0:01:27.7]} 24... Nc5 {[%clk 0:01:31.5]} 25. a6 {[%clk 0:01:27.4]}
25... bxa6 {[%clk 0:01:31.6]} 26. bxa6 {[%clk 0:01:28.3]} 26... Ra8 {[%clk
0:01:30.8]} 27. a7 {[%clk 0:01:06.1]} 27... c6 {[%clk 0:01:30.8]} 28. g3 {[%clk
0:00:51.8]} 28... Rff8 {[%clk 0:01:22.5]} 29. Ne4 {[%clk 0:00:51.2]} 29... Rxa7
{[%clk 0:00:34.5]} 30. Rxa7 {[%clk 0:00:46.1]} 30... Qxa7 {[%clk 0:00:35.4]} 31.
Nxd6 {[%clk 0:00:45.8]} 31... Qe7 {[%clk 0:00:35.8]} 32. Ne4 {[%clk 0:00:39.5]}
1-0

[Event "Late-Titled-Tuesday-Blitz-January-16-2024"]
[Site "Chess.com"]
[Date "2024.01.16"]
[Round "1"]
[White "BogdanDeac"]
[Black "xakevicius91"]
[Result "1/2-1/2"]
[WhiteElo "3029"]
[BlackElo "2525"]
[TimeControl "180+1"]
[EndTime "14:06:45 PST"]
[Termination "Game drawn by repetition"]

1. b3 {[%clk 0:03:00.9]} 1... c5 {[%clk 0:02:51.7]} 2. Bb2 {[%clk 0:03:01.8]}
2... Nc6 {[%clk 0:02:46]} 3. e3 {[%clk 0:03:01.3]} 3... b6 {[%clk 0:02:42.7]} 4.
d4 {[%clk 0:03:01]} 4... cxd4 {[%clk 0:02:42.6]} 5. exd4 {[%clk 0:03:01.9]} 5...
e6 {[%clk 0:02:42.6]} 6. d5 {[%clk 0:03:00.9]} 6... exd5 {[%clk 0:02:39.1]} 7.
Qxd5 {[%clk 0:02:46.6]} 7... Nf6 {[%clk 0:02:36.3]} 8. Qd1 {[%clk 0:02:43.3]}
8... Bc5 {[%clk 0:02:30.7]} 9. Qe2+ {[%clk 0:02:27.4]} 9... Be7 {[%clk
0:02:29.2]} 10. Bxf6 {[%clk 0:02:22.3]} 10... gxf6 {[%clk 0:02:30.1]} 11. Qh5
{[%clk 0:02:03.5]} 11... Bb7 {[%clk 0:02:24.7]} 12. Nf3 {[%clk 0:01:54.1]} 12...
Qc7 {[%clk 0:02:24.7]} 13. Bd3 {[%clk 0:01:51.6]} 13... Ne5 {[%clk 0:02:19.8]}
14. Nbd2 {[%clk 0:01:00.7]} 14... Nxf3+ {[%clk 0:01:48.9]} 15. Nxf3 {[%clk
0:01:00.1]} 15... Bxf3 {[%clk 0:01:48.2]} 16. Qxf3 {[%clk 0:00:57.5]} 16... Qe5+
{[%clk 0:01:48.4]} 17. Kd2 {[%clk 0:00:51.6]} 17... Bb4+ {[%clk 0:01:46.3]} 18.
c3 {[%clk 0:00:51.8]} 18... Qxc3+ {[%clk 0:01:42.8]} 19. Ke2 {[%clk 0:00:25]}
19... Qb2+ {[%clk 0:01:14.1]} 20. Ke3 {[%clk 0:00:24.5]} 20... Bd2+ {[%clk
0:00:46.4]} 21. Ke2 {[%clk 0:00:20.8]} 21... Bg5+ {[%clk 0:00:42]} 22. Bc2
{[%clk 0:00:20.7]} 22... Qxc2+ {[%clk 0:00:41.5]} 23. Kf1 {[%clk 0:00:21]} 23...
O-O {[%clk 0:00:37.5]} 24. h4 {[%clk 0:00:20.9]} 24... Bh6 {[%clk 0:00:36.5]}
25. Rh3 {[%clk 0:00:20.5]} 25... Bg7 {[%clk 0:00:23.1]} 26. Rg3 {[%clk
0:00:18.8]} 26... f5 {[%clk 0:00:23.3]} 27. Qf4 {[%clk 0:00:12.3]} 27... Rae8
{[%clk 0:00:22.8]} 28. Rxg7+ {[%clk 0:00:09.6]} 28... Kxg7 {[%clk 0:00:23.3]}
29. Qg5+ {[%clk 0:00:09.8]} 29... Kh8 {[%clk 0:00:23.6]} 30. Qf6+ {[%clk
0:00:10.3]} 30... Kg8 {[%clk 0:00:24.2]} 31. Qg5+ {[%clk 0:00:10.9]} 31... Kh8
{[%clk 0:00:24.7]} 32. Qf6+ {[%clk 0:00:11.8]} 32... Kg8 {[%clk 0:00:25.2]} 33.
Qg5+ {[%clk 0:00:12.7]} 33... Kh8 {[%clk 0:00:25.3]} 1/2-1/2

[Event "Late-Titled-Tuesday-Blitz-January-16-2024"]
[Site "Chess.com"]
[Date "2024.01.16"]
[Round "1"]
[White "vladoboch"]
[Black "GothamChess"]
[Result "0-1"]
[WhiteElo "2425"]
[BlackElo "2752"]
[TimeControl "180+1"]
[EndTime "14:06:46 PST"]
[Termination "GothamChess won by resignation"]

1. e4 {[%clk 0:03:00.9]} 1... d5 {[%clk 0:02:58.4]} 2. exd5 {[%clk 0:02:55.7]}
2... Qxd5 {[%clk 0:02:59.3]} 3. Nc3 {[%clk 0:02:55.3]} 3... Qa5 {[%clk
0:02:59.8]} 4. d4 {[%clk 0:02:54.7]} 4... Nf6 {[%clk 0:02:57.2]} 5. Nf3 {[%clk
0:02:52.7]} 5... Bf5 {[%clk 0:02:57.5]} 6. Bd2 {[%clk 0:02:42.5]} 6... c6 {[%clk
0:02:56.9]} 7. Bc4 {[%clk 0:02:42]} 7... e6 {[%clk 0:02:56.5]} 8. O-O {[%clk
0:02:40.9]} 8... Bb4 {[%clk 0:02:51.1]} 9. a3 {[%clk 0:02:36.7]} 9... Bxc3
{[%clk 0:02:50.8]} 10. Bxc3 {[%clk 0:02:36.4]} 10... Qc7 {[%clk 0:02:49.2]} 11.
h3 {[%clk 0:02:13.7]} 11... O-O {[%clk 0:02:48.7]} 12. Bd3 {[%clk 0:02:00.5]}
12... Bg6 {[%clk 0:02:40.7]} 13. Re1 {[%clk 0:02:00.3]} 13... Nbd7 {[%clk
0:02:38.2]} 14. Ne5 {[%clk 0:01:59.9]} 14... Nd5 {[%clk 0:02:36.1]} 15. Nxg6
{[%clk 0:01:54.5]} 15... hxg6 {[%clk 0:02:35.4]} 16. Bd2 {[%clk 0:01:53.9]}
16... c5 {[%clk 0:02:29.7]} 17. c4 {[%clk 0:01:44.8]} 17... Nf4 {[%clk 0:02:29]}
18. Qf3 {[%clk 0:01:34.4]} 18... Nxd3 {[%clk 0:02:24.3]} 19. Qxd3 {[%clk
0:01:35.3]} 19... Rad8 {[%clk 0:02:17.9]} 20. Rad1 {[%clk 0:01:18.5]} 20... cxd4
{[%clk 0:02:07]} 21. Bb4 {[%clk 0:01:10.3]} 21... Nc5 {[%clk 0:02:05]} 22. Qf3
{[%clk 0:00:56.7]} 22... b6 {[%clk 0:01:59.6]} 23. Bd2 {[%clk 0:00:55.4]} 23...
e5 {[%clk 0:01:53.2]} 24. b4 {[%clk 0:00:53]} 24... Ne6 {[%clk 0:01:51.5]} 25.
Qd3 {[%clk 0:00:52.2]} 25... Rc8 {[%clk 0:01:47.7]} 26. Rc1 {[%clk 0:00:51.8]}
26... Rfe8 {[%clk 0:01:46.9]} 27. Qe4 {[%clk 0:00:42.5]} 27... Nf8 {[%clk
0:01:20.9]} 28. c5 {[%clk 0:00:42.4]} 28... Qd7 {[%clk 0:01:09.8]} 29. c6 {[%clk
0:00:36.2]} 29... Qf5 {[%clk 0:01:04.4]} 30. Qd5 {[%clk 0:00:32.7]} 30... Qe6
{[%clk 0:00:57.1]} 31. Qb5 {[%clk 0:00:27.7]} 31... Qa2 {[%clk 0:00:52.5]} 32.
Qd3 {[%clk 0:00:20.6]} 32... Qd5 {[%clk 0:00:50.3]} 33. b5 {[%clk 0:00:20.6]}
33... e4 {[%clk 0:00:49.8]} 34. Qf1 {[%clk 0:00:20.8]} 34... Ne6 {[%clk
0:00:47.5]} 35. a4 {[%clk 0:00:21]} 35... Nc5 {[%clk 0:00:46]} 36. a5 {[%clk
0:00:19.3]} 36... Nd3 {[%clk 0:00:46.1]} 37. axb6 {[%clk 0:00:18.4]} 37... axb6
{[%clk 0:00:46.2]} 38. Rb1 {[%clk 0:00:18.7]} 38... Nxe1 {[%clk 0:00:43]} 39.
Qxe1 {[%clk 0:00:19.6]} 39... e3 {[%clk 0:00:42.1]} 40. fxe3 {[%clk 0:00:19.1]}
40... dxe3 {[%clk 0:00:42.8]} 41. Bxe3 {[%clk 0:00:18.9]} 41... Qd3 {[%clk
0:00:42.5]} 42. Kf2 {[%clk 0:00:16.6]} 42... Rxe3 {[%clk 0:00:41.7]} 43. Qxe3
{[%clk 0:00:16.6]} 43... Qxb1 {[%clk 0:00:42.1]} 0-1

[Event "Late-Titled-Tuesday-Blitz-January-16-2024"]
[Site "Chess.com"]
[Date "2024.01.16"]
[Round "1"]
[White "Rodalquilar"]
[Black "ozen_metehan"]
[Result "0-1"]
[WhiteElo "2736"]
[BlackElo "2439"]
[TimeControl "180+1"]
[EndTime "14:06:47 PST"]
[Termination "ozen_metehan won on time"]

1. d4 {[%clk 0:03:00.9]} 1... Nf6 {[%clk 0:02:44.4]} 2. Nf3 {[%clk 0:02:58.4]}
2... e6 {[%clk 0:02:44.4]} 3. Bf4 {[%clk 0:02:57.9]} 3... c5 {[%clk 0:02:44.1]}
4. e3 {[%clk 0:02:57.7]} 4... cxd4 {[%clk 0:02:44.3]} 5. exd4 {[%clk 0:02:57.7]}
5... b6 {[%clk 0:02:44.3]} 6. c3 {[%clk 0:02:57.4]} 6... Bb7 {[%clk 0:02:44.2]}
7. Nbd2 {[%clk 0:02:57.8]} 7... Be7 {[%clk 0:02:44.3]} 8. Bd3 {[%clk 0:02:57.9]}
8... O-O {[%clk 0:02:44.7]} 9. O-O {[%clk 0:02:58.3]} 9... d6 {[%clk 0:02:44.8]}
10. h3 {[%clk 0:02:58.4]} 10... Nbd7 {[%clk 0:02:45.7]} 11. Bh2 {[%clk 0:02:58]}
11... Re8 {[%clk 0:02:46.6]} 12. a4 {[%clk 0:02:57.5]} 12... a6 {[%clk
0:02:46.4]} 13. Re1 {[%clk 0:02:56]} 13... h6 {[%clk 0:02:45]} 14. Nc4 {[%clk
0:02:53.6]} 14... Qc7 {[%clk 0:02:44.3]} 15. Ne3 {[%clk 0:02:53.8]} 15... Bf8
{[%clk 0:02:43.8]} 16. Nd2 {[%clk 0:02:53.5]} 16... Rac8 {[%clk 0:02:39.1]} 17.
Qe2 {[%clk 0:02:39.5]} 17... Ra8 {[%clk 0:02:37.6]} 18. Rec1 {[%clk 0:02:31.4]}
18... g6 {[%clk 0:02:35]} 19. Ng4 {[%clk 0:02:07.7]} 19... Nxg4 {[%clk
0:02:27.8]} 20. hxg4 {[%clk 0:02:08.1]} 20... e5 {[%clk 0:02:24.6]} 21. dxe5
{[%clk 0:02:04.8]} 21... Nxe5 {[%clk 0:02:19.4]} 22. Be4 {[%clk 0:01:55.5]}
22... d5 {[%clk 0:02:11.8]} 23. Bc2 {[%clk 0:01:48.6]} 23... Bd6 {[%clk
0:02:11.1]} 24. Qd1 {[%clk 0:01:20.5]} 24... Qd7 {[%clk 0:02:04.5]} 25. Bxe5
{[%clk 0:01:17]} 25... Bxe5 {[%clk 0:02:02.6]} 26. Nb3 {[%clk 0:01:13.3]} 26...
Bf4 {[%clk 0:02:01.3]} 27. Rcb1 {[%clk 0:01:11.7]} 27... Re7 {[%clk 0:01:59.8]}
28. Nd4 {[%clk 0:01:11.5]} 28... Rae8 {[%clk 0:01:59.8]} 29. Qf3 {[%clk
0:01:08.5]} 29... Be5 {[%clk 0:01:58]} 30. Rd1 {[%clk 0:01:07.6]} 30... Bc8
{[%clk 0:01:56.8]} 31. Bb3 {[%clk 0:00:53.3]} 31... Qxg4 {[%clk 0:01:55.3]} 32.
Bxd5 {[%clk 0:00:47]} 32... Qh4 {[%clk 0:01:46.5]} 33. g3 {[%clk 0:00:45]} 33...
Qg5 {[%clk 0:01:45.9]} 34. Nc6 {[%clk 0:00:27.5]} 34... Bg4 {[%clk 0:01:36.7]}
35. Nxe7+ {[%clk 0:00:27.1]} 35... Rxe7 {[%clk 0:01:37.6]} 36. Qd3 {[%clk
0:00:18.3]} 36... Bxd1 {[%clk 0:01:37.2]} 37. Rxd1 {[%clk 0:00:19.2]} 37... h5
{[%clk 0:01:34.3]} 38. Kg2 {[%clk 0:00:08.6]} 38... h4 {[%clk 0:01:34.2]} 39.
Rh1 {[%clk 0:00:08.9]} 39... hxg3 {[%clk 0:01:33.4]} 40. fxg3 {[%clk 0:00:09.8]}
40... Kg7 {[%clk 0:01:19.1]} 41. Rd1 {[%clk 0:00:09.9]} 41... Bxg3 {[%clk
0:01:09.8]} 42. Qxg3 {[%clk 0:00:01.6]} 42... Re2+ {[%clk 0:01:09.2]} 43. Kh3
{[%clk 0:00:01]} 43... Qh5+ {[%clk 0:01:08.6]} 44. Qh4 {[%clk 0:00:01.2]} 44...
Re3+ {[%clk 0:01:08.9]} 0-1

[Event "Late-Titled-Tuesday-Blitz-January-16-2024"]
[Site "Chess.com"]
[Date "2024.01.16"]
[Round "1"]
[White "vova-79"]
[Black "jinxy2009"]
[Result "1-0"]
[WhiteElo "2608"]
[BlackElo "2257"]
[TimeControl "180+1"]
[EndTime "14:06:49 PST"]
[Termination "vova-79 won by resignation"]

1. d4 {[%clk 0:03:00.9]} 1... Nf6 {[%clk 0:02:58.3]} 2. c4 {[%clk 0:03:00.3]}
2... g6 {[%clk 0:02:55.1]} 3. Nf3 {[%clk 0:02:59.3]} 3... Bg7 {[%clk 0:02:55.1]}
4. g3 {[%clk 0:02:59.6]} 4... O-O {[%clk 0:02:54.3]} 5. Bg2 {[%clk 0:03:00]}
5... d5 {[%clk 0:02:54.2]} 6. cxd5 {[%clk 0:02:59.5]} 6... Nxd5 {[%clk
0:02:55.1]} 7. O-O {[%clk 0:02:59.7]} 7... Nb6 {[%clk 0:02:53.9]} 8. Nc3 {[%clk
0:02:59.5]} 8... Nc6 {[%clk 0:02:54.2]} 9. e3 {[%clk 0:02:56.9]} 9... e5 {[%clk
0:02:41.7]} 10. d5 {[%clk 0:02:43.7]} 10... Ne7 {[%clk 0:02:39.5]} 11. e4 {[%clk
0:02:31.9]} 11... Nc4 {[%clk 0:02:28.9]} 12. b3 {[%clk 0:01:54.2]} 12... Nd6
{[%clk 0:02:25.7]} 13. Bb2 {[%clk 0:01:50.6]} 13... f5 {[%clk 0:02:01.8]} 14.
exf5 {[%clk 0:01:41.9]} 14... gxf5 {[%clk 0:02:02.7]} 15. Ng5 {[%clk 0:01:40.5]}
15... h6 {[%clk 0:01:39.2]} 16. Ne6 {[%clk 0:01:38.1]} 16... Bxe6 {[%clk
0:01:38.5]} 17. dxe6 {[%clk 0:01:39]} 17... Qe8 {[%clk 0:01:34.1]} 18. Nd5
{[%clk 0:01:34.6]} 18... Nxd5 {[%clk 0:01:18]} 19. Qxd5 {[%clk 0:01:35.5]} 19...
Qe7 {[%clk 0:01:14.1]} 20. Bxe5 {[%clk 0:01:32.4]} 20... Bxe5 {[%clk 0:01:13.1]}
21. Qxe5 {[%clk 0:01:33]} 21... Rae8 {[%clk 0:01:12.3]} 22. Rfe1 {[%clk
0:01:30.7]} 22... Rf6 {[%clk 0:01:06]} 23. Rad1 {[%clk 0:01:12.4]} 23... Kh7
{[%clk 0:00:43.5]} 24. Bd5 {[%clk 0:00:32.5]} 24... c6 {[%clk 0:00:25.9]} 25.
Bc4 {[%clk 0:00:28.8]} 25... Nxc4 {[%clk 0:00:22.5]} 26. bxc4 {[%clk 0:00:29.7]}
26... Qxe6 {[%clk 0:00:20.6]} 27. Qa1 {[%clk 0:00:21]} 27... Qxc4 {[%clk
0:00:05.9]} 28. Rxe8 {[%clk 0:00:19.5]} 1-0

[Event "Late-Titled-Tuesday-Blitz-January-16-2024"]
[Site "Chess.com"]
[Date "2024.01.16"]
[Round "1"]
[White "adic2020"]
[Black "Incognito_Knight"]
[Result "0-1"]
[WhiteElo "2423"]
[BlackElo "2762"]
[TimeControl "180+1"]
[EndTime "14:06:50 PST"]
[Termination "Incognito_Knight won by resignation"]

1. Nf3 {[%clk 0:03:00.9]} 1... d5 {[%clk 0:02:52.7]} 2. d4 {[%clk 0:03:00.7]}
2... Nf6 {[%clk 0:02:48.9]} 3. Bf4 {[%clk 0:03:00.7]} 3... c5 {[%clk 0:02:48.3]}
4. e3 {[%clk 0:03:00.8]} 4... Nc6 {[%clk 0:02:48.8]} 5. Nbd2 {[%clk 0:03:00.7]}
5... cxd4 {[%clk 0:02:47.2]} 6. exd4 {[%clk 0:03:00.5]} 6... a6 {[%clk
0:02:44.4]} 7. c3 {[%clk 0:02:57.4]} 7... Bf5 {[%clk 0:02:44.2]} 8. Be2 {[%clk
0:02:56.8]} 8... h6 {[%clk 0:02:32.7]} 9. O-O {[%clk 0:02:54.6]} 9... e6 {[%clk
0:02:33.1]} 10. Re1 {[%clk 0:02:40.8]} 10... Bd6 {[%clk 0:02:31.2]} 11. Bxd6
{[%clk 0:02:40.2]} 11... Qxd6 {[%clk 0:02:32.1]} 12. Bf1 {[%clk 0:02:40.3]}
12... Qc7 {[%clk 0:02:26.7]} 13. Ne5 {[%clk 0:02:27.8]} 13... Nxe5 {[%clk
0:02:26.3]} 14. Rxe5 {[%clk 0:02:28.2]} 14... O-O {[%clk 0:02:25.5]} 15. a4
{[%clk 0:02:24.2]} 15... Ng4 {[%clk 0:02:08.4]} 16. Nf3 {[%clk 0:02:12]} 16...
Nxe5 {[%clk 0:02:05.2]} 17. Nxe5 {[%clk 0:02:12.9]} 17... f6 {[%clk 0:02:00.5]}
18. Nd3 {[%clk 0:02:12.8]} 18... Bxd3 {[%clk 0:01:58.9]} 19. Bxd3 {[%clk
0:02:13.7]} 19... e5 {[%clk 0:01:55.6]} 20. Bf5 {[%clk 0:02:13.7]} 20... exd4
{[%clk 0:01:48.7]} 21. Qxd4 {[%clk 0:02:14.1]} 21... Qe5 {[%clk 0:01:48.3]} 22.
Qxe5 {[%clk 0:02:14.3]} 22... fxe5 {[%clk 0:01:49.2]} 23. Be6+ {[%clk
0:02:14.7]} 23... Kh8 {[%clk 0:01:49.6]} 24. Bxd5 {[%clk 0:02:15.6]} 24... Rad8
{[%clk 0:01:28.2]} 25. c4 {[%clk 0:02:05.9]} 25... b5 {[%clk 0:01:06.2]} 26. b3
{[%clk 0:01:42.7]} 26... bxc4 {[%clk 0:00:55.9]} 27. bxc4 {[%clk 0:01:43.6]}
27... Rb8 {[%clk 0:00:48.5]} 28. Re1 {[%clk 0:01:34.6]} 28... Rb2 {[%clk
0:00:45.8]} 29. h4 {[%clk 0:01:28.1]} 29... Rfxf2 {[%clk 0:00:29.8]} 30. Rxe5
{[%clk 0:01:27.4]} 30... Rbe2 {[%clk 0:00:30.5]} 31. Be4 {[%clk 0:01:09.5]}
31... Rxg2+ {[%clk 0:00:27.8]} 32. Kf1 {[%clk 0:01:07.5]} 32... Rgf2+ {[%clk
0:00:26.1]} 33. Kg1 {[%clk 0:01:07.6]} 33... Rf8 {[%clk 0:00:26.8]} 34. Re6
{[%clk 0:01:06.7]} 34... a5 {[%clk 0:00:21.8]} 35. Bd5 {[%clk 0:01:04.1]} 35...
Rxe6 {[%clk 0:00:18.7]} 36. Bxe6 {[%clk 0:01:05]} 36... Re8 {[%clk 0:00:11.2]}
37. Bd5 {[%clk 0:01:03.4]} 37... g5 {[%clk 0:00:08.1]} 38. hxg5 {[%clk
0:00:56.9]} 38... hxg5 {[%clk 0:00:09]} 39. Kf1 {[%clk 0:00:57.3]} 39... Kg7
{[%clk 0:00:09.2]} 40. Kf2 {[%clk 0:00:57.6]} 40... Kf6 {[%clk 0:00:09.7]} 41.
Kg3 {[%clk 0:00:58.3]} 41... Re3+ {[%clk 0:00:09.5]} 42. Kg4 {[%clk 0:00:58.3]}
42... Rc3 {[%clk 0:00:08.9]} 43. Bg8 {[%clk 0:00:56.8]} 43... Ra3 {[%clk
0:00:06.8]} 44. c5 {[%clk 0:00:57.5]} 44... Rxa4+ {[%clk 0:00:07]} 45. Kg3
{[%clk 0:00:57.9]} 45... Ra3+ {[%clk 0:00:07.4]} 46. Kf2 {[%clk 0:00:57.1]}
46... Rc3 {[%clk 0:00:08.3]} 0-1

[Event "Late-Titled-Tuesday-Blitz-January-16-2024"]
[Site "Chess.com"]
[Date "2024.01.16"]
[Round "1"]
[White "thesupera12"]
[Black "shirovin"]
[Result "1-0"]
[WhiteElo "2543"]
[BlackElo "2009"]
[TimeControl "180+1"]
[EndTime "14:06:50 PST"]
[Termination "thesupera12 won by checkmate"]

1. d4 {[%clk 0:02:59]} 1... Nf6 {[%clk 0:02:58.9]} 2. Bg5 {[%clk 0:02:59.6]}
2... d5 {[%clk 0:02:54.4]} 3. Bxf6 {[%clk 0:02:51.4]} 3... gxf6 {[%clk 0:02:54]}
4. e3 {[%clk 0:02:41.1]} 4... Bg7 {[%clk 0:02:52.6]} 5. c4 {[%clk 0:02:27.7]}
5... c6 {[%clk 0:02:43.4]} 6. Nc3 {[%clk 0:02:25.8]} 6... f5 {[%clk 0:02:39.6]}
7. cxd5 {[%clk 0:02:12.5]} 7... cxd5 {[%clk 0:02:37.5]} 8. g3 {[%clk 0:02:13]}
8... O-O {[%clk 0:02:34.2]} 9. Bg2 {[%clk 0:02:13.6]} 9... e6 {[%clk 0:02:30.3]}
10. Nge2 {[%clk 0:02:13.9]} 10... Nc6 {[%clk 0:02:23.5]} 11. O-O {[%clk
0:02:14.2]} 11... b6 {[%clk 0:02:20.9]} 12. Rc1 {[%clk 0:02:13.7]} 12... Bb7
{[%clk 0:02:16.8]} 13. Nf4 {[%clk 0:02:09]} 13... Kh8 {[%clk 0:02:03.9]} 14. Qh5
{[%clk 0:02:04.7]} 14... a6 {[%clk 0:01:51.2]} 15. Ncxd5 {[%clk 0:01:55.2]}
15... exd5 {[%clk 0:01:42.1]} 16. Bxd5 {[%clk 0:01:56.1]} 16... Qd7 {[%clk
0:01:25.1]} 17. Rc2 {[%clk 0:01:36.7]} 17... Nb4 {[%clk 0:01:10.2]} 18. Bxb7
{[%clk 0:01:33.6]} 18... Qxb7 {[%clk 0:01:06.9]} 19. Rc4 {[%clk 0:01:34.2]}
19... Nd5 {[%clk 0:00:42.5]} 20. Qxf5 {[%clk 0:01:29.9]} 20... Nxf4 {[%clk
0:00:40.4]} 21. Qxf4 {[%clk 0:01:30.8]} 21... Rac8 {[%clk 0:00:37]} 22. Rfc1
{[%clk 0:01:30.8]} 22... Rxc4 {[%clk 0:00:31.2]} 23. Rxc4 {[%clk 0:01:31.7]}
23... b5 {[%clk 0:00:29.6]} 24. Rc7 {[%clk 0:01:29]} 24... Qd5 {[%clk
0:00:28.3]} 25. b3 {[%clk 0:01:24.1]} 25... a5 {[%clk 0:00:25.9]} 26. Rc5 {[%clk
0:01:22.4]} 26... Qd7 {[%clk 0:00:22]} 27. Qg5 {[%clk 0:01:11.5]} 27... Rb8
{[%clk 0:00:18.2]} 28. h4 {[%clk 0:01:06.7]} 28... a4 {[%clk 0:00:16.9]} 29. h5
{[%clk 0:01:05.5]} 29... axb3 {[%clk 0:00:14.5]} 30. axb3 {[%clk 0:01:06.4]}
30... Qd8 {[%clk 0:00:11.7]} 31. Qf5 {[%clk 0:01:03.4]} 31... Qe8 {[%clk
0:00:09.7]} 32. Rc7 {[%clk 0:00:54.1]} 32... Ra8 {[%clk 0:00:07.3]} 33. Rxf7
{[%clk 0:00:49.1]} 33... Ra1+ {[%clk 0:00:06.5]} 34. Kh2 {[%clk 0:00:49]} 34...
Qa8 {[%clk 0:00:05.3]} 35. d5 {[%clk 0:00:44.3]} 35... Qe8 {[%clk 0:00:03.8]}
36. h6 {[%clk 0:00:41.5]} 36... Be5 {[%clk 0:00:02.1]} 37. Qxh7# {[%clk
0:00:41.6]} 1-0